fUST/lending_fUST_20250621
["ID","MTS","AMOUNT","RATE_DAILY","PERIOD"]
[366760314,1750435351888,200.0,0.00023996,120]
[366760315,1750435411929,200.0,0.00024389,120]
[366760316,1750435437432,1596.7387527,0.00018299,2]
[366760317,1750435572960,2968.74485513,0.00018298,2]
[366760318,1750435573009,20000.0,0.00018298,2]
[366760319,1750435573059,1931.25514487,0.00018298,2]
[366760320,1750435581474,1958.28802193,0.000189,2]
[366760321,1750435591186,200.0,0.00024178,120]
[366760323,1750435606180,1305.52534795,0.000189,2]
[366760324,1750435673077,2000.0,0.00018272,120]
[366760326,1750435699649,1154.2067005,0.00018442,2]
[366760332,1750435723362,10000.0,0.00018276,2]
[366760336,1750435771443,200.0,0.00024221,120]
[366760337,1750435826318,649.010132,0.00018296,2]
[366760385,1750435832003,-186.250932,0.00019178,2]
[366760387,1750435832014,-299.2305021,0.00019196,2]
[366760389,1750435832027,-317.77219273,0.00019196,2]
[366760391,1750435832037,-201.43681089,0.00019196,2]
[366760393,1750435832047,-538.21200702,0.00019196,2]
[366760395,1750435832057,-158.33478504,0.00019199,2]
[366760397,1750435832068,-300.0,0.00019294,2]
[366760399,1750435832078,-358.90816075,0.00019294,2]
[366760401,1750435832090,-841.09183925,0.00019294,2]
[366760403,1750435832100,-300.0,0.00019295,2]
[366760405,1750435832110,-420.0,0.00019295,2]
[366760407,1750435832121,-460.0,0.00019295,2]
[366760409,1750435832130,-386.03405117,0.00019295,2]
[366760411,1750435832140,-460.0,0.00019295,2]
[366760413,1750435832150,-460.0,0.00019295,2]
[366760415,1750435832159,-424.97421766,0.00019295,2]
[366760417,1750435832169,-460.0,0.00019295,2]
[366760419,1750435832179,-560.64,0.00019295,2]
[366760421,1750435832189,-460.0,0.00019295,2]
[366760422,1750435832200,-460.0,0.00019295,2]
[366760425,1750435832211,-460.0,0.00019295,2]
[366760427,1750435832221,-1893.57,0.00019295,2]
[366760429,1750435832236,-1610.37,0.00019295,2]
[366760431,1750435832246,-460.0,0.00019295,2]
[366760433,1750435832256,-460.0,0.00019295,2]
[366760435,1750435832266,-460.0,0.00019295,2]
[366760437,1750435832275,-460.0,0.00019295,2]
[366760439,1750435832286,-460.0,0.00019295,2]
[366760441,1750435832297,-342.60115297,0.00019295,2]
[366760443,1750435832307,-460.0,0.00019295,2]
[366760445,1750435832316,-460.0,0.00019295,2]
[366760447,1750435832326,-460.0,0.00019295,2]
[366760449,1750435832337,-460.0,0.00019295,2]
[366760451,1750435832348,-460.0,0.00019296,2]
[366760453,1750435832358,-460.73377086,0.00019296,2]
[366760455,1750435832368,-460.0,0.00019296,2]
[366760457,1750435832377,-460.0,0.00019296,2]
[366760459,1750435832387,-460.0,0.00019296,2]
[366760461,1750435832396,-1283.35,0.00019296,2]
[366760463,1750435832407,-1605.67,0.00019296,2]
[366760465,1750435832417,-1827.4,0.00019296,2]
[366760467,1750435832427,-460.0,0.00019296,2]
[366760469,1750435832436,-541.73,0.00019296,2]
[366760471,1750435832447,-216.06285829,0.00019296,2]
[366760473,1750435832457,-800.1,0.00019296,2]
[366760475,1750435832469,-460.0,0.00019296,2]
[366760477,1750435832479,-1114.28,0.00019296,2]
[366760479,1750435832488,-854.28,0.00019296,2]
[366760481,1750435832498,-460.0,0.00019296,2]
[366760483,1750435832508,-460.0,0.00019296,2]
[366760485,1750435832517,-369.63537497,0.00019296,2]
[366760487,1750435832527,-559.60332474,0.00019296,2]
[366760489,1750435832537,-460.0,0.00019296,2]
[366760491,1750435832547,-460.0,0.00019296,2]
[366760493,1750435832557,-460.0,0.00019296,2]
[366760495,1750435832567,-460.0,0.00019296,2]
[366760497,1750435832576,-460.0,0.00019296,2]
[366760499,1750435832586,-460.0,0.00019296,2]
[366760501,1750435832595,-460.0,0.00019296,2]
[366760503,1750435832606,-460.0,0.00019296,2]
[366760505,1750435832615,-500.0,0.00019296,2]
[366760507,1750435832625,-965.04893056,0.00019296,2]
[366760509,1750435832635,-422.56425861,0.00019296,2]
[366760511,1750435832644,-965.04893056,0.00019296,2]
[366760512,1750435832654,-965.04893056,0.00019296,2]
[366760513,1750435832663,-965.04893056,0.00019296,2]
[366760514,1750435832673,-965.04893056,0.00019296,2]
[366760515,1750435832683,-965.04893056,0.00019296,2]
[366760516,1750435832693,-965.04893056,0.00019296,2]
[366760517,1750435832702,-1022.95186638,0.00019296,2]
[366760518,1750435832712,-1022.95186638,0.00019296,2]
[366760519,1750435832722,-1022.95186638,0.00019296,2]
[366760520,1750435832732,-1022.95186638,0.00019296,2]
[366760521,1750435832742,-1022.95186638,0.00019296,2]
[366760522,1750435832752,-1022.95186638,0.00019296,2]
[366760523,1750435832761,-1000.26233251,0.00019296,2]
[366760524,1750435832771,-1000.26233251,0.00019296,2]
[366760525,1750435832781,-1000.26233251,0.00019296,2]
[366760526,1750435832791,-1000.26233251,0.00019296,2]
[366760527,1750435832801,-1476.85791445,0.00019296,2]
[366760528,1750435832811,-460.0,0.00019297,2]
[366760529,1750435832821,-460.0,0.00019297,2]
[366760530,1750435832830,-460.0,0.00019297,2]
[366760531,1750435833049,-460.0,0.00019297,2]
[366760532,1750435833059,-460.0,0.00019297,2]
[366760533,1750435833069,-460.0,0.00019297,2]
[366760534,1750435833080,-460.0,0.00019297,2]
[366760535,1750435833092,-460.0,0.00019297,2]
[366760536,1750435833103,-460.0,0.00019297,2]
[366760537,1750435833114,-430.0,0.00019297,2]
[366760538,1750435833124,-460.0,0.00019297,2]
[366760539,1750435833135,-460.0,0.00019297,2]
[366760540,1750435833145,-460.0,0.00019297,2]
[366760541,1750435833156,-460.0,0.00019297,2]
[366760542,1750435833167,-460.0,0.00019297,2]
[366760543,1750435833178,-460.0,0.00019297,2]
[366760544,1750435833189,-370.0,0.00019297,2]
[366760545,1750435833206,-460.0,0.00019297,2]
[366760546,1750435833217,-445.11835624,0.00019297,2]
[366760547,1750435833229,-535.79755839,0.00019297,2]
[366760548,1750435833240,-460.0,0.00019297,2]
[366760549,1750435833251,-460.0,0.00019297,2]
[366760550,1750435833262,-460.0,0.00019297,2]
[366760551,1750435833273,-420.0,0.00019297,2]
[366760552,1750435833283,-460.0,0.00019297,2]
[366760553,1750435833295,-460.0,0.00019297,2]
[366760554,1750435833306,-460.0,0.00019297,2]
[366760555,1750435833317,-245.7481722,0.00019297,2]
[366760556,1750435833328,-460.0,0.00019297,2]
[366760557,1750435833338,-460.0,0.00019297,2]
[366760558,1750435833349,-500.0,0.00019297,2]
[366760559,1750435833360,-500.0,0.00019297,2]
[366760560,1750435833371,-460.0,0.00019297,2]
[366760561,1750435833381,-460.0,0.00019297,2]
[366760562,1750435833392,-341.22490982,0.00019297,2]
[366760563,1750435833402,-460.0,0.00019297,2]
[366760564,1750435833412,-460.0,0.00019297,2]
[366760565,1750435833423,-460.0,0.00019297,2]
[366760566,1750435833433,-460.0,0.00019297,2]
[366760567,1750435833443,-387.23080679,0.00019297,2]
[366760568,1750435833457,-460.0,0.00019297,2]
[366760569,1750435833468,-460.0,0.00019297,2]
[366760570,1750435833479,-460.0,0.00019297,2]
[366760571,1750435833490,-460.0,0.00019297,2]
[366760572,1750435833500,-460.0,0.00019297,2]
[366760573,1750435833511,-460.0,0.00019297,2]
[366760574,1750435833522,-460.0,0.00019297,2]
[366760575,1750435833532,-406.30704402,0.00019297,2]
[366760576,1750435833542,-460.0,0.00019297,2]
[366760577,1750435833552,-460.0,0.00019297,2]
[366760578,1750435833562,-460.0,0.00019297,2]
[366760579,1750435833572,-460.0,0.00019297,2]
[366760580,1750435833582,-460.0,0.00019297,2]
[366760581,1750435833592,-460.0,0.00019297,2]
[366760582,1750435833602,-594.58,0.00019297,2]
[366760583,1750435833612,-460.0,0.00019297,2]
[366760584,1750435833622,-460.0,0.00019297,2]
[366760585,1750435833633,-460.0,0.00019297,2]
[366760586,1750435833643,-460.0,0.00019297,2]
[366760587,1750435833654,-460.0,0.00019297,2]
[366760588,1750435833664,-300.0,0.00019297,2]
[366760589,1750435833674,-513.93,0.00019297,2]
[366760590,1750435833692,-867.72,0.00019297,2]
[366760591,1750435833710,-460.0,0.00019297,2]
[366760592,1750435833720,-460.0,0.00019297,2]
[366760593,1750435833731,-460.0,0.00019297,2]
[366760594,1750435833741,-460.0,0.00019297,2]
[366760595,1750435833752,-460.0,0.00019297,2]
[366760596,1750435833762,-616.46,0.00019297,2]
[366760597,1750435833774,-460.0,0.00019297,2]
[366760598,1750435833785,-460.0,0.00019297,2]
[366760599,1750435833796,-979.01,0.00019297,2]
[366760600,1750435833807,-700.85,0.00019297,2]
[366760601,1750435833818,-546.59,0.00019297,2]
[366760602,1750435833829,-460.0,0.00019297,2]
[366760603,1750435833839,-400.70560515,0.00019297,2]
[366760604,1750435833849,-460.0,0.00019297,2]
[366760605,1750435833860,-2270.64,0.00019297,2]
[366760606,1750435833871,-460.0,0.00019297,2]
[366760607,1750435833881,-363.91614142,0.00019297,2]
[366760608,1750435833895,-460.0,0.00019297,2]
[366760609,1750435833905,-460.0,0.00019297,2]
[366760610,1750435833915,-460.0,0.00019297,2]
[366760611,1750435833926,-460.0,0.00019297,2]
[366760612,1750435833937,-577.92,0.00019297,2]
[366760613,1750435833952,-460.0,0.00019297,2]
[366760614,1750435833962,-460.0,0.00019297,2]
[366760615,1750435833973,-460.0,0.00019297,2]
[366760616,1750435833983,-460.0,0.00019297,2]
[366760617,1750435833994,-500.0,0.00019297,2]
[366760618,1750435834005,-793.18,0.00019297,2]
[366760619,1750435834016,-460.0,0.00019297,2]
[366760620,1750435834027,-2419.69,0.00019297,2]
[366760621,1750435834039,-460.0,0.00019297,2]
[366760622,1750435834050,-460.0,0.00019297,2]
[366760623,1750435834060,-400.0,0.00019297,2]
[366760624,1750435834070,-460.0,0.00019297,2]
[366760625,1750435834081,-460.0,0.00019297,2]
[366760626,1750435834092,-460.0,0.00019297,2]
[366760627,1750435834102,-460.0,0.00019297,2]
[366760628,1750435834113,-460.0,0.00019297,2]
[366760629,1750435834124,-460.0,0.00019297,2]
[366760630,1750435834135,-460.0,0.00019297,2]
[366760631,1750435834145,-460.0,0.00019297,2]
[366760632,1750435834156,-460.0,0.00019297,2]
[366760633,1750435834166,-460.0,0.00019297,2]
[366760634,1750435834176,-460.0,0.00019297,2]
[366760635,1750435834187,-460.0,0.00019297,2]
[366760636,1750435834200,-1015.82,0.00019297,2]
[366760637,1750435834210,-214.82255203,0.00019297,2]
[366760638,1750435834222,-384.40007013,0.00019298,2]
[366760639,1750435834233,-460.0,0.00019298,2]
[366760640,1750435834243,-460.0,0.00019298,2]
[366760641,1750435834254,-460.0,0.00019298,2]
[366760642,1750435834265,-460.0,0.00019298,2]
[366760643,1750435834276,-227.16,0.00019298,2]
[366760644,1750435834286,-460.0,0.00019298,2]
[366760645,1750435834297,-460.0,0.00019298,2]
[366760646,1750435834312,-460.0,0.00019298,2]
[366760647,1750435834323,-460.0,0.00019298,2]
[366760648,1750435834334,-460.0,0.00019298,2]
[366760649,1750435834345,-460.0,0.00019298,2]
[366760650,1750435834355,-500.0,0.00019298,2]
[366760651,1750435834365,-500.0,0.00019298,2]
[366760652,1750435834376,-440.0,0.00019298,2]
[366760653,1750435834385,-500.0,0.00019298,2]
[366760654,1750435834396,-460.0,0.00019298,2]
[366760655,1750435834407,-460.0,0.00019298,2]
[366760656,1750435834417,-439.41965538,0.00019298,2]
[366760657,1750435834427,-460.0,0.00019298,2]
[366760658,1750435834438,-460.0,0.00019298,2]
[366760659,1750435834450,-460.0,0.00019298,2]
[366760660,1750435834460,-460.0,0.00019298,2]
[366760661,1750435834470,-460.0,0.00019298,2]
[366760662,1750435834480,-460.0,0.00019298,2]
[366760663,1750435834491,-460.0,0.00019298,2]
[366760664,1750435834501,-460.0,0.00019299,2]
[366760665,1750435834511,-347.14708218,0.00019299,2]
[366760666,1750435834521,-297.7766824,0.00019299,2]
[366760667,1750435834531,-460.0,0.00019299,2]
[366760668,1750435834541,-460.0,0.00019299,2]
[366760669,1750435834552,-460.0,0.00019299,2]
[366760670,1750435834562,-460.0,0.00019299,2]
[366760671,1750435834572,-460.0,0.00019299,2]
[366760672,1750435834583,-410.0,0.00019299,2]
[366760673,1750435834593,-460.0,0.00019299,2]
[366760674,1750435834603,-460.0,0.00019299,2]
[366760675,1750435834613,-460.0,0.00019299,2]
[366760676,1750435834623,-500.0,0.00019299,2]
[366760677,1750435834634,-460.0,0.00019299,2]
[366760678,1750435834644,-500.0,0.00019299,2]
[366760679,1750435834654,-500.0,0.000193,2]
[366760680,1750435834665,-500.0,0.000193,2]
[366760681,1750435834675,-607.14073036,0.000193,2]
[366760682,1750435834685,-304.9222876,0.000193,2]
[366760683,1750435834695,-160.0,0.000193,2]
[366760684,1750435834706,-460.0,0.00019569,2]
[366760685,1750435834716,-460.0,0.00019569,2]
[366760686,1750435834725,-460.0,0.00019569,2]
[366760687,1750435834735,-560.64,0.00019569,2]
[366760688,1750435834745,-460.0,0.00019569,2]
[366760689,1750435834755,-340.0,0.00019569,2]
[366760690,1750435834764,-460.0,0.00019569,2]
[366760691,1750435834774,-1893.57,0.00019569,2]
[366760692,1750435834784,-1610.37,0.00019569,2]
[366760693,1750435834793,-460.0,0.00019569,2]
[366760694,1750435834803,-460.0,0.00019569,2]
[366760695,1750435834813,-460.0,0.00019569,2]
[366760696,1750435834823,-460.0,0.00019569,2]
[366760697,1750435834832,-460.0,0.00019569,2]
[366760698,1750435834842,-460.0,0.00019569,2]
[366760699,1750435834852,-460.0,0.00019569,2]
[366760700,1750435834861,-460.0,0.0001957,2]
[366760701,1750435834872,-444.97,0.0001957,2]
[366760702,1750435834883,-460.0,0.0001957,2]
[366760703,1750435834896,-460.0,0.0001957,2]
[366760704,1750435834906,-1283.35,0.0001957,2]
[366760705,1750435834916,-1605.67,0.0001957,2]
[366760706,1750435834926,-1827.4,0.0001957,2]
[366760707,1750435834936,-460.0,0.0001957,2]
[366760708,1750435834948,-541.73,0.0001957,2]
[366760709,1750435834959,-800.1,0.0001957,2]
[366760710,1750435834969,-460.0,0.0001957,2]
[366760711,1750435834979,-1114.28,0.0001957,2]
[366760712,1750435834989,-854.28,0.0001957,2]
[366760713,1750435834998,-460.0,0.0001957,2]
[366760714,1750435835008,-460.0,0.0001957,2]
[366760715,1750435835018,-460.0,0.0001957,2]
[366760716,1750435835029,-460.0,0.0001957,2]
[366760717,1750435835038,-460.0,0.0001957,2]
[366760718,1750435835049,-460.0,0.0001957,2]
[366760719,1750435835059,-460.0,0.0001957,2]
[366760720,1750435835069,-460.0,0.0001957,2]
[366760721,1750435835079,-460.0,0.0001957,2]
[366760722,1750435835089,-460.0,0.0001957,2]
[366760723,1750435835099,-460.0,0.00019571,2]
[366760724,1750435835109,-460.0,0.00019571,2]
[366760725,1750435835119,-476.22737964,0.00019571,2]
[366760726,1750435835129,-335.88453678,0.00019571,2]
[366760727,1750435835139,-453.42910048,0.00019571,2]
[366760728,1750435835150,-460.0,0.00019571,2]
[366760729,1750435835159,-154.59180433,0.00019571,2]
[366760730,1750435835323,-305.40819567,0.00019571,2]
[366760731,1750435835334,-460.0,0.00019571,2]
[366760732,1750435835343,-440.0,0.00019571,2]
[366760733,1750435835352,-433.42038116,0.00019571,2]
[366760734,1750435835362,-556.26960291,0.00019571,2]
[366760735,1750435835372,-392.3810877,0.00019571,2]
[366760736,1750435835382,-460.0,0.00019571,2]
[366760737,1750435835392,-460.0,0.00019571,2]
[366760738,1750435835401,-280.22298708,0.00019571,2]
[366760739,1750435835410,-460.0,0.00019571,2]
[366760740,1750435835420,-460.0,0.00019571,2]
[366760741,1750435835430,-460.0,0.00019571,2]
[366760742,1750435835439,-460.0,0.00019571,2]
[366760743,1750435835451,-420.0,0.00019571,2]
[366760744,1750435835460,-358.54375086,0.00019571,2]
[366760745,1750435835470,-460.0,0.00019571,2]
[366760746,1750435835479,-460.0,0.00019571,2]
[366760747,1750435835490,-460.0,0.00019571,2]
[366760748,1750435835500,-460.0,0.00019571,2]
[366760749,1750435835510,-585.03025621,0.00019571,2]
[366760750,1750435835519,-272.76057755,0.00019571,2]
[366760751,1750435835529,-460.0,0.00019571,2]
[366760752,1750435835539,-390.29038377,0.00019571,2]
[366760753,1750435835551,-69.70961623,0.00019571,2]
[366760754,1750435835560,-460.0,0.00019571,2]
[366760755,1750435835570,-111.33752004,0.00019571,2]
[366760808,1750435838042,-460.0,0.00019295,2]
[366760809,1750435838056,-460.0,0.00019569,2]
[366760810,1750435838066,-348.66247996,0.00019571,2]
[366760811,1750435838076,-460.0,0.00019571,2]
[366760812,1750435838086,-460.0,0.00019571,2]
[366760813,1750435838096,-460.0,0.00019571,2]
[366760814,1750435838106,-594.58,0.00019571,2]
[366760815,1750435838116,-460.0,0.00019571,2]
[366760816,1750435838125,-460.0,0.00019571,2]
[366760817,1750435838135,-460.0,0.00019571,2]
[366760818,1750435838145,-460.0,0.00019571,2]
[366760819,1750435838155,-460.0,0.00019571,2]
[366760820,1750435838164,-513.93,0.00019571,2]
[366760821,1750435838174,-867.72,0.00019571,2]
[366760822,1750435838183,-460.0,0.00019571,2]
[366760823,1750435838193,-356.60074128,0.00019571,2]
[366760824,1750435838204,-460.0,0.00019571,2]
[366760825,1750435838214,-460.0,0.00019571,2]
[366760826,1750435838224,-460.0,0.00019571,2]
[366760827,1750435838233,-616.46,0.00019571,2]
[366760828,1750435838243,-460.0,0.00019571,2]
[366760829,1750435838254,-460.0,0.00019571,2]
[366760830,1750435838264,-979.01,0.00019571,2]
[366760831,1750435838274,-700.85,0.00019571,2]
[366760832,1750435838283,-546.59,0.00019571,2]
[366760833,1750435838293,-460.0,0.00019571,2]
[366760834,1750435838302,-2270.64,0.00019571,2]
[366760835,1750435838312,-460.0,0.00019571,2]
[366760836,1750435838321,-460.0,0.00019571,2]
[366760837,1750435838331,-460.0,0.00019571,2]
[366760838,1750435838343,-460.0,0.00019571,2]
[366760839,1750435838352,-460.0,0.00019571,2]
[366760840,1750435838361,-577.92,0.00019571,2]
[366760841,1750435838371,-460.0,0.00019571,2]
[366760842,1750435838380,-460.0,0.00019571,2]
[366760843,1750435838389,-460.0,0.00019571,2]
[366760844,1750435838399,-793.18,0.00019571,2]
[366760845,1750435838408,-460.0,0.00019571,2]
[366760846,1750435838417,-2419.69,0.00019571,2]
[366760847,1750435838426,-460.0,0.00019571,2]
[366760848,1750435838436,-460.0,0.00019571,2]
[366760849,1750435838445,-460.0,0.00019571,2]
[366760850,1750435838457,-460.0,0.00019571,2]
[366760851,1750435838467,-460.0,0.00019571,2]
[366760852,1750435838476,-460.0,0.00019571,2]
[366760853,1750435838486,-460.0,0.00019571,2]
[366760854,1750435838496,-460.0,0.00019571,2]
[366760855,1750435838505,-460.0,0.00019571,2]
[366760856,1750435838514,-460.0,0.00019571,2]
[366760857,1750435838524,-460.0,0.00019571,2]
[366760858,1750435838533,-460.0,0.00019571,2]
[366760859,1750435838543,-460.0,0.00019571,2]
[366760860,1750435838552,-1015.82,0.00019571,2]
[366760861,1750435838562,-150.41472825,0.00019572,2]
[366760862,1750435838572,-460.0,0.00019572,2]
[366760863,1750435838582,-460.0,0.00019572,2]
[366760864,1750435838591,-305.67079724,0.00019572,2]
[366760865,1750435838600,-460.0,0.00019572,2]
[366760866,1750435838610,-460.0,0.00019572,2]
[366760867,1750435838620,-460.0,0.00019572,2]
[366760868,1750435838629,-460.0,0.00019572,2]
[366760869,1750435838639,-364.32344527,0.00019572,2]
[366760870,1750435838648,-410.0,0.00019572,2]
[366760871,1750435838658,-467.91144806,0.00019572,2]
[366760872,1750435838668,-460.0,0.00019572,2]
[366760873,1750435838677,-460.0,0.00019573,2]
[366760874,1750435838687,-290.33767294,0.00019573,2]
[366760875,1750435838696,-460.0,0.00019573,2]
[366760876,1750435838711,-461.45320745,0.00019573,2]
[366760877,1750435838721,-460.0,0.00019573,2]
[366760878,1750435838731,-460.0,0.00019573,2]
[366760879,1750435838740,-460.0,0.00019573,2]
[366760880,1750435838750,-460.0,0.00019573,2]
[366760881,1750435838759,-345.40643325,0.00019573,2]
[366760882,1750435838769,-222.65125632,0.00019641,2]
[366760883,1750435838778,-210.0,0.00019726,3]
[366760884,1750435838788,-393.02500775,0.00019843,2]
[366760885,1750435838798,-460.0,0.00019843,2]
[366760886,1750435838807,-460.0,0.00019843,2]
[366760887,1750435838817,-560.64,0.00019843,2]
[366760888,1750435838827,-460.0,0.00019843,2]
[366760889,1750435838837,-460.0,0.00019843,2]
[366760890,1750435838847,-1893.57,0.00019843,2]
[366760891,1750435838857,-1610.37,0.00019843,2]
[366760892,1750435838867,-460.0,0.00019843,2]
[366760893,1750435838877,-460.0,0.00019843,2]
[366760894,1750435838888,-460.0,0.00019843,2]
[366760895,1750435838900,-460.0,0.00019843,2]
[366760896,1750435838910,-460.0,0.00019843,2]
[366760897,1750435838920,-460.0,0.00019843,2]
[366760898,1750435838930,-460.0,0.00019843,2]
[366760899,1750435838940,-460.0,0.00019843,2]
[366760900,1750435838953,-460.0,0.00019844,2]
[366760901,1750435838963,-287.7642072,0.00019844,2]
[366760902,1750435839128,-460.0,0.00019844,2]
[366760903,1750435839140,-1605.67,0.00019844,2]
[366760904,1750435839150,-1827.4,0.00019844,2]
[366760905,1750435839160,-460.0,0.00019844,2]
[366760906,1750435839170,-541.73,0.00019844,2]
[366760907,1750435839179,-800.1,0.00019844,2]
[366760908,1750435839190,-460.0,0.00019844,2]
[366760909,1750435839201,-1114.28,0.00019844,2]
[366760910,1750435839211,-854.28,0.00019844,2]
[366760911,1750435839220,-460.0,0.00019844,2]
[366760912,1750435839230,-460.0,0.00019844,2]
[366760913,1750435839240,-460.0,0.00019844,2]
[366760914,1750435839250,-460.0,0.00019844,2]
[366760915,1750435839260,-460.0,0.00019844,2]
[366760916,1750435839270,-460.0,0.00019844,2]
[366760917,1750435839279,-460.0,0.00019844,2]
[366760918,1750435839290,-460.0,0.00019844,2]
[366760919,1750435839300,-460.0,0.00019844,2]
[366760920,1750435839309,-460.0,0.00019844,2]
[366760922,1750435839319,-460.0,0.00019845,2]
[366760923,1750435839329,-460.0,0.00019845,2]
[366760924,1750435839338,-460.0,0.00019845,2]
[366760925,1750435839348,-205.808834,0.00019845,2]
[366760926,1750435839358,-460.0,0.00019845,2]
[366760927,1750435839367,-460.0,0.00019845,2]
[366760928,1750435839377,-460.0,0.00019845,2]
[366760929,1750435839386,-252.39,0.00019845,2]
[366760930,1750435839396,-460.0,0.00019845,2]
[366760931,1750435839406,-460.0,0.00019845,2]
[366760932,1750435839415,-460.0,0.00019845,2]
[366760933,1750435839425,-460.0,0.00019845,2]
[366760934,1750435839434,-460.0,0.00019845,2]
[366760935,1750435839444,-316.91950005,0.00019845,2]
[366760936,1750435839455,-460.0,0.00019845,2]
[366760937,1750435839465,-460.0,0.00019845,2]
[366760938,1750435839474,-460.0,0.00019845,2]
[366760939,1750435839483,-460.0,0.00019845,2]
[366760940,1750435839493,-460.0,0.00019845,2]
[366760941,1750435839503,-460.0,0.00019845,2]
[366760942,1750435839512,-171.79242548,0.00019845,2]
[366760943,1750435839522,-594.58,0.00019845,2]
[366760944,1750435839532,-460.0,0.00019845,2]
[366760945,1750435839542,-460.0,0.00019845,2]
[366760946,1750435839552,-460.0,0.00019845,2]
[366760947,1750435839562,-460.0,0.00019845,2]
[366760949,1750435839572,-390.6517274,0.00019845,2]
[366760951,1750435839582,-513.93,0.00019845,2]
[366760953,1750435839593,-867.72,0.00019845,2]
[366760954,1750435839602,-460.0,0.00019845,2]
[366760955,1750435839612,-460.0,0.00019845,2]
[366760956,1750435839622,-460.0,0.00019845,2]
[366760957,1750435839631,-460.0,0.00019845,2]
[366760958,1750435839641,-616.46,0.00019845,2]
[366760959,1750435839650,-460.0,0.00019845,2]
[366760960,1750435839662,-460.0,0.00019845,2]
[366760961,1750435839672,-979.01,0.00019845,2]
[366760962,1750435839681,-700.85,0.00019845,2]
[366760963,1750435839691,-546.59,0.00019845,2]
[366760964,1750435839702,-460.0,0.00019845,2]
[366760965,1750435839711,-2270.64,0.00019845,2]
[366760966,1750435839722,-460.0,0.00019845,2]
[366760967,1750435839732,-310.0,0.00019845,2]
[366760968,1750435839742,-460.0,0.00019845,2]
[366760970,1750435839753,-460.0,0.00019845,2]
[366760971,1750435839763,-410.01521592,0.00019845,2]
[366760972,1750435839773,-577.92,0.00019845,2]
[366760973,1750435839783,-460.0,0.00019845,2]
[366760974,1750435839792,-460.0,0.00019845,2]
[366760975,1750435839802,-460.0,0.00019845,2]
[366760976,1750435839812,-793.18,0.00019845,2]
[366760978,1750435839821,-460.0,0.00019845,2]
[366760980,1750435839831,-2419.69,0.00019845,2]
[366760982,1750435839840,-460.0,0.00019845,2]
[366760984,1750435839850,-460.0,0.00019845,2]
[366760986,1750435839859,-460.0,0.00019845,2]
[366760988,1750435839869,-460.0,0.00019845,2]
[366760990,1750435839879,-460.0,0.00019845,2]
[366760992,1750435839892,-460.0,0.00019845,2]
[366760994,1750435839902,-400.54111973,0.00019845,2]
[366760996,1750435839911,-460.0,0.00019845,2]
[366760998,1750435839921,-460.0,0.00019845,2]
[366761000,1750435839930,-460.0,0.00019845,2]
[366761002,1750435839939,-460.0,0.00019845,2]
[366761004,1750435839948,-460.0,0.00019845,2]